Workbook

Sheet tinplate
A1: Thickness (mm) | B1: Width (mm) | C1: Hardness Grade | D1: Net Weight (MT) | E1: Tin-coating (g/m²) | F1: Brand
A2: 0.13 | B2: 918 | C2: MR T-5BA | D2: 17.87 | E2: 1.1/1.1（1.4/1.4） | F2: Shougang
A3: 0.13 | B3: 926 | C3: MR DR-8 BA | D3: =8.525+9.225+9.715 -> 27.465 | E3: 2.0/5.0 | F3: Shougang
A4: 0.13 | B4: 926 | C4: MR DR-8 BA | D4: 9.225 | E4: 2.0/4.0（2.0/5.0） | F4: Shougang
A5: 0.13 | B5: 927 | C5: MR DR-8 BA | D5: =8.805+8.865 -> 17.67 | E5: 2.8/4.0 | F5: Shougang
A6: 0.13 | B6: 927 | C6: MR DR-8 BA | D6: =9.285+6.355 -> 15.64 | E6: 2.0/5.0 | F6: Shougang
A7: 0.13 | B7: 958 | C7: MR DR-8 BA | D7: 7.585 | E7: 2.0/5.0 | F7: Shougang
A8: 0.14 | B8: 804 | C8: MR DR-8CA | D8: 8.985 | E8: 2.8/4.0 | F8: Shougang Contract material
A9: 0.14 | B9: 825 | C9: MR DR-8BA | D9: =31.475-8.615+15.3-8.435 -> 29.725 | E9: 2.8/4.0 | F9: Shougang
A10: 0.14 | B10: 830 | C10: MR DR-7M BA | D10: =8.05+8.685 -> 16.735 | E10: 2.8/2.8 | F10: Shougang
A11: 0.14 | B11: 840 | C11: MR DR-8CA | D11: 6.03 | E11: 1.1/1.1 | F11: Shougang
A12: 0.14 | B12: 841 | C12: MR DR-8CA | D12: 6.135 | E12: 1.1/1.1 | F12: Shougang
A13: 0.14 | B13: 858 | C13: MR DR-8CA | D13: =17.49+40.69-49.735 -> 8.445 | E13: 1.1/1.1 | F13: Shougang
A14: 0.14 | B14: 934 | C14: MR DR-8 CA | D14: =6.225+7.795 -> 14.02 | E14: 2.8/5.6 | F14: Shougang
A15: 0.14 | B15: 964 | C15: MR DR-8CA | D15: =5.41+20.28-7.93-6.07-5.15-5.41 -> 1.13 | E15: 2.8/2.8 | F15: Shougang
A16: 0.14 | B16: 972 | C16: MR DR-7 BA | D16: =7.62+8.275 -> 15.895 | E16: 2.8/2.8 | F16: Shougang
A17: 0.15 | B17: 822 | C17: MR DR-8M CA | D17: 7 | E17: 1.1/2.0 | F17: Shougang
A18: 0.15 | B18: 860 | C18: MR DR-8BA | D18: 7.73 | E18: 1.1/1.1 | F18: Shougang
A19: 0.15 | B19: 891 | C19: MR DR-9 CA | D19: 6.125 | E19: 2.8/2.8 | F19: Shougang
A20: 0.15 | B20: 896 | C20: MR DR-8 CA | D20: =8.745+5.64 -> 14.385 | E20: 2.8/2.8 | F20: Shougang
A21: 0.15 | B21: 896 | C21: MR DR-8 CA | D21: =8.755+3.955+8.875+8.87+3.175+3.745+6.205+41.405 -> 84.985 | E21: 2.8/2.8 | F21: Shougang
A22: 0.15 | B22: 896 | C22: MR DR-8 CA | D22: =8.765+8.905 -> 17.67 | E22: 2.0/2.0（2.8/2.8） | F22: Shougang
A23: 0.15 | B23: 896 | C23: MR DR-8 CA | D23: =6.185+8.805+3.69+8.805+8.965+8.995 -> 45.445 | E23: 2.8/2.8 | F23: Shougang
A24: 0.15 | B24: 897 | C24: MR DR-8 CA | D24: =8.765+8.715+8.835+8.835+8.995+8.715 -> 52.86 | E24: 2.8/2.8 | F24: Shougang
A25: 0.15 | B25: 897 | C25: MR DR-8 CA | D25: =6.175 -> 6.175 | E25: 2.8/2.8 | F25: Shougang
A26: 0.15 | B26: 898 | C26: MR DR-9 CA | D26: =6.275+6.345+4.495 -> 17.115 | E26: 2.8/2.8 | F26: Shougang
A27: 0.15 | B27: 898 | C27: MR DR-9 CA | D27: 6.16 | E27: 2.8/2.8 | F27: Shougang Contract material
A28: 0.155 | B28: 897 | C28: MR DR-8CA | D28: 9.425 | E28: 1.8/2.8 | F28: Shougang
A29: 0.15 | B29: 924 | C29: MR DR-8 BA | D29: 5.975 | E29: 1.1/1.1 | F29: Shougang
A30: 0.16 | B30: 820 | C30: MR DR-8 CA | D30: 9.7 | E30: 2.8/2.8 | F30: Shougang
A31: 0.16 | B31: 822 | C31: MR DR-8M CA | D31: =3.12+8.795+3.95+7.01+7.57+6.695+6.735 -> 43.875 | E31: 1.1/2.0 | F31: Shougang
A32: 0.16 | B32: 860 | C32: MR DR-8 BA | D32: 7.575 | E32: 2.8/2.8 | F32: Shougang
A33: 0.16 | B33: 862 | C33: MR DR-9CA | D33: =7.965+8.915 -> 16.88 | E33: 2.0/2.0 | F33: Shougang
A34: 0.16 | B34: 862 | C34: MR DR-9CA | D34: =5.705+7.775+13.845+7.805+3.305+8.515+8.605+3.965 -> 59.52 | E34: 2.0/2.0 | F34: Shougang
A35: 0.16 | B35: 863 | C35: MR DR-9CA | D35: =5.825+8.345 -> 14.17 | E35: 2.0/2.0 | F35: Shougang
A36: 0.16 | B36: 863 | C36: MR DR-9CA | D36: =25.27+3.475+3.965+3.475 -> 36.185 | E36: 2.0/2.0 | F36: Shougang Contract material
A37: 0.16 | B37: 867 | C37: MR DR-8 BA | D37: 8.805 | E37: 2.8/2.8 | F37: Shougang
A38: 0.16 | B38: 870 | C38: MR DR-8BA | D38: =36.225-4.82-6.3-6.295-6.26 -> 12.55 | E38: 2.8/2.8 | F38: Prime future material
A39: 0.16 | B39: 871 | C39: MR DR-8BA | D39: 7.83 | E39: 2.8/2.8 | F39: Shougang
A40: 0.16 | B40: 875 | C40: MR DR-8BA | D40: 5.525 | E40: 2.8/1.1 | F40: Shougang
A41: 0.16 | B41: 896 | C41: MR DR-8 CA | D41: =8.575+5.98 -> 14.555 | E41: 2.8/2.8 | F41: Shougang Contract material
A42: 0.16 | B42: 897 | C42: MR DR-8 CA | D42: 19.395 | E42: 2.8/2.8 | F42: Shougang
A43: 0.16 | B43: 897 | C43: MR DR-8 CA | D43: =6.345+6.435+6.475 -> 19.255 | E43: 2.8/2.8 | F43: Shougang Contract material
A44: 0.16 | B44: 914 | C44: MR DR-8CA | D44: =5.755+5.765 -> 11.52 | E44: 2.8/2.8 | F44: Shougang
A45: 0.17 | B45: 806 | C45: MR T-4BA | D45: 7.545 | E45: 2.0/2.0 | F45: Shougang
A46: 0.17 | B46: 820 | C46: MR DR-8 CA | D46: =8.315+8.445+6.335+8.445+8.975+6.385+8.2 -> 55.1 | E46: 2.8/2.8 | F46: Shougang
A47: 0.17 | B47: 868 | C47: MR DR-8 BA | D47: 9 | E47: 2.8/2.8 | F47: Shougang
A48: 0.17 | B48: 892 | C48: MR DR-7BA | D48: 5.46 | E48: 2.2/2.2 | F48: Shougang
A49: 0.17 | B49: 895 | C49: MR T-5 CA | D49: =8.24+9.86+9.88+17.28 -> 45.26 | E49: 1.1/1.1 | F49: Shougang
A50: 0.17 | B50: 897 | C50: MR DR-8CA | D50: 5.925 | E50: 2.8/2.8 | F50: Shougang
A51: 0.17 | B51: 900 | C51: MR T-5BA | D51: 6.385 | E51: 2.8/2.8 | F51: Shougang
A52: 0.17 | B52: 900 | C52: MR DR-8BA | D52: =12.72+19.825 -> 32.545 | E52: 2.8/2.8 | F52: Shougang
A53: 0.17 | B53: 900 | C53: MR DR-7MCA | D53: =5.055+6.385+6.405+6.465+6.065 -> 30.375 | E53: 2.8/2.8 | F53: Shougang
A54: 0.17 | B54: 901 | C54: MR DR-7MCA | D54: 6.415 | E54: 2.8/2.8 | F54: Shougang
A55: 0.17 | B55: 917 | C55: MR DR-8CA | D55: 7.4 | E55: 2.8/2.8 | F55: Shougang
A56: 0.17 | B56: 919 | C56: MR DR-8BA | D56: 6.165 | E56: 1.1/1.1 | F56: Shougang
A57: 0.17 | B57: 925 | C57: MR T-5 CA | D57: 6.05 | E57: 2.0/2.0 | F57: Shougang
A58: 0.17 | B58: 926 | C58: MR T-5BA | D58: 6.435 | E58: 2.0/2.0 | F58: Shougang
A59: 0.17 | B59: 927 | C59: MR T-5BA | D59: =5.615+7.565 -> 13.18 | E59: 2.0/2.0 | F59: Shougang
A60: 0.17 | B60: 928 | C60: MR DR-7BA | D60: =6.165+6.465+5.935+6.105 -> 24.67 | E60: 2.2/2.2 | F60: Shougang
A61: 0.17 | B61: 955 | C61: MR T-5BA | D61: =4.81+16.06 -> 20.87 | E61: 2.8/2.8 | F61: Shougang
A62: 0.17 | B62: 960 | C62: MR DR-7MCA | D62: =8.37+7.07+18.06 -> 33.5 | E62: 1.1/1.1(1.5/1.5） | F62: Shougang
A63: 0.17 | B63: 960 | C63: MR DR-7MCA | D63: 9.32 | E63: 1.1/1.1 | F63: Shougang Contract material
A64: 0.17 | B64: 981 | C64: MR T-5 BA | D64: 5.545 | E64: 2.8/2.8 | F64: Shougang
A65: 0.17 | B65: 994 | C65: MR T-5BA | D65: =5.75+9.135 -> 14.885 | E65: 2.8/2.8 | F65: Shougang
A66: 0.17 | B66: 1000 | C66: MR DR-7MCA | D66: 2.68 | E66: 1.1/1.1 | F66: Shougang
A67: 0.18 | B67: 792 | C67: MR T-5 BA | D67: =8.19+8.28+7.88 -> 24.35 | E67: 2.8/2.8 | F67: Shougang
A68: 0.18 | B68: 795 | C68: MR T-4 CA | D68: 7.86 | E68: 2.0/2.0 | F68: Shougang
A69: 0.18 | B69: 796 | C69: MR T-4 CA | D69: 5.7 | E69: 2.0/2.0 | F69: Shougang
A70: 0.185 | B70: 816 | C70: MR T-5CA | D70: =5.69+8.435 -> 14.125 | E70: 1.1/1.1 | F70: Shougang
A71: 0.18 | B71: 824 | C71: MR T-5CA | D71: 5.39 | E71: 2.0/2.0 | F71: Shougang
A72: 0.18 | B72: 832 | C72: MR T-4 BA | D72: 4.485 | E72: 2.0/2.0 | F72: Shougang
A73: 0.18 | B73: 832 | C73: MR T-4 CA | D73: 6.11 | E73: 2.0/2.0 | F73: Shougang
A74: 0.18 | B74: 832 | C74: MR T-4 CA | D74: 6.74 | E74: 2.0/2.0 | F74: Shougang
A75: 0.18 | B75: 832 | C75: MR T-5BA | D75: 6.07 | E75: 2.0/2.0 | F75: Shougang
A76: 0.18 | B76: 832 | C76: MR T-5BA | D76: 4.65 | E76: 2.0/2.0 | F76: Prime future material
A77: 0.18 | B77: 836 | C77: MR T-4BA | D77: 8.42 | E77: 2.0/2.0 | F77: Shougang
A78: 0.18 | B78: 850 | C78: MR T-5BA | D78: 8.54 | E78: 5.6/5.6 | F78: Shougang
A79: 0.18 | B79: 851 | C79: MR T-3 CA | D79: 7.28 | E79: 2.8/2.8 | F79: Shougang
A80: 0.18 | B80: 851 | C80: MR T-3 CA | D80: =8.11+8.01 -> 16.12 | E80: 2.8/2.8 | F80: Shougang
A81: 0.18 | B81: 851 | C81: MR T-5BA | D81: 8.51 | E81: 5.6/5.6 | F81: Shougang
A82: 0.18 | B82: 860 | C82: MR T-4BA | D82: =6.775+6.635 -> 13.41 | E82: 2.8/2.8 | F82: Shougang
A83: 0.18 | B83: 902 | C83: MR T-4BA | D83: 2.022 | E83: 2.0/1.1 | F83: Prime surplus material
A84: 0.18 | B84: 905 | C84: MR T-4BA | D84: 5.785 | E84: 1.1/1.1 | F84: Shougang
A85: 0.18 | B85: 922 | C85: MR DR-8 CA | D85: =5.865+5.855 -> 11.72 | E85: 2.0/2.0 | F85: Shougang
A86: 0.18 | B86: 926 | C86: MR T-5 BA | D86: =7.9+7.75 -> 15.65 | E86: 2.0/2.0 | F86: Shougang
A87: 0.18 | B87: 926 | C87: MR T-5 CA | D87: 3.1 | E87: 2.8/2.0 | F87: Shougang
A88: 0.18 | B88: 926 | C88: MR T-5 BA | D88: =6.375+5.815 -> 12.19 | E88: 2.0/2.0 | F88: Shougang
A89: 0.18 | B89: 927 | C89: MR T-5BA | D89: 6.3 | E89: 2.8/2.8 | F89: Shougang
A90: 0.18 | B90: 927 | C90: MR T-5BA | D90: 5.39 | E90: 2.0/2.0 | F90: Shougang
A91: 0.18 | B91: 932 | C91: MR T-5 CA | D91: 8.265 | E91: 2.0/2.0 | F91: Shougang
A92: 0.18 | B92: 933 | C92: MR T-5 CA | D92: 7.23 | E92: 2.0/2.0 | F92: Shougang
A93: 0.18 | B93: 950 | C93: MR T-4BA | D93: 3.95 | E93: 8.4/2.2 | F93: Shougang
A94: 0.18 | B94: 956 | C94: MR T-4CA | D94: 8.8 | E94: 1.1/1.1 | F94: Shougang
A95: 0.18 | B95: 958 | C95: MR T-5BA | D95: =8.02+8.13 -> 16.15 | E95: 2.8/2.8 | F95: Shougang
A96: 0.18 | B96: 970 | C96: MR T-5 CA | D96: 9.64 | E96: 4.0/2.0（5.0/2.0） | F96: Shougang
A97: 0.18 | B97: 970 | C97: MR T-5 CA | D97: 4.99 | E97: 5.0/2.0 | F97: Shougang
A98: 0.18 | B98: 980 | C98: MR T-5 CA | D98: =5.3+5.995 -> 11.295 | E98: 2.8/2.8 | F98: Shougang
A99: 0.18 | B99: 994 | C99: MR T-5BA | D99: 7.27 | E99: 2.8/2.8 | F99: Shougang
A100: 0.18 | B100: 996 | C100: MR T-4BA | D100: =6.425+6.785 -> 13.21 | E100: 1.1/1.1 | F100: Shougang
A101: 0.18 | B101: 997 | C101: MR T-4BA | D101: =6.42+6.245 -> 12.665 | E101: 1.1/1.1 | F101: Shougang
A102: 0.18 | B102: 1035 | C102: MR T-4 BA | D102: 7.375 | E102: 1.1/1.1 | F102: Shougang
A103: 0.18 | B103: 1035 | C103: MR T-4BA | D103: =5.83+7.5+6.365+4.55+6.465+15.32 -> 46.03 | E103: 1.1/1.1 | F103: Shougang
A104: 0.18 | B104: 1035 | C104: MR T-4BA | D104: 15.38 | E104: 1.1/1.1 | F104: Shougang Contract material
A105: 0.18 | B105: 1036 | C105: MR T-4BA | D105: 10.03 | E105: 1.1/1.1 | F105: Shougang
A106: 0.18 | B106: 1041 | C106: MR T-4BA | D106: 8.37 | E106: 2.0/2.0 | F106: Shougang
A107: 0.19 | B107: 740 | C107: MR T-4CA | D107: 16.08 | E107: 5.6/2.8 | F107: Shougang
A108: 0.19 | B108: 740 | C108: MR T-4CA | D108: 8.25 | E108: 2.8/5.6 | F108: Shougang
A109: 0.19 | B109: 772 | C109: MR T-4 CA | D109: 8.29 | E109: 2.8/2.8 | F109: Shougang
A110: 0.19 | B110: 807 | C110: MR T-4BA | D110: =3.45+8.72+5.97+8.5 -> 26.64 | E110: 2.8/2.8 | F110: Shougang
A111: 0.19 | B111: 808 | C111: MR T-4BA | D111: 7.19 | E111: 2.8/2.8 | F111: Shougang
A112: 0.19 | B112: 815 | C112: MR DR-7MBA | D112: 8.665 | E112: 2.2/1.7 | F112: Shougang
A113: 0.19 | B113: 820 | C113: MR T-4CA | D113: 7.29 | E113: 1.1/1.1 | F113: Shougang
A114: 0.19 | B114: 820 | C114: MR T-5 CA | D114: 6.02 | E114: 5.6/2.8 | F114: Shougang
A115: 0.19 | B115: 820 | C115: MR T-5 CA | D115: 6.14 | E115: 2.8/1.1 | F115: Shougang
A116: 0.19 | B116: 820 | C116: MR T-5 CA | D116: 6.07 | E116: 5.6/2.8 | F116: Shougang
A117: 0.19 | B117: 823 | C117: MR T-5 CA | D117: 6.91 | E117: 1.1/1.1 | F117: Shougang
A118: 0.19 | B118: 831 | C118: MR T-4 BA | D118: =5.45+5.4 -> 10.85 | E118: 2.8/2.8 | F118: Shougang
A119: 0.19 | B119: 832 | C119: MR T-4BA | D119: =8.505+11.68+7.905+5.91 -> 34 | E119: 1.1/1.1 | F119: Shougang
A120: 0.19 | B120: 875 | C120: MR T-5 BA | D120: 3.55 | E120: 1.1/1.1 | F120: Shougang Contract material
A121: 0.19 | B121: 877 | C121: MR T-5 CA | D121: =54.75-9.165-9.195-9.185-9.085-9.075 -> 9.045 | E121: 2.8/2.0 | F121: Shougang
A122: 0.19 | B122: 882 | C122: MR T-5 CA | D122: =6.41+6.41+6.43 -> 19.25 | E122: 2.8/2.8 | F122: Shougang
A123: 0.19 | B123: 885 | C123: MR T-5 CA | D123: =9.18+9.02 -> 18.2 | E123: 2.2/2.8 | F123: Shougang
A124: 0.19 | B124: 887 | C124: MR T-4CA | D124: 21.96 | E124: 2.8/2.0 | F124: Shougang
A125: 0.19 | B125: 887 | C125: MR T-4CA | D125: 6.72 | E125: 2.0/2.8 | F125: Shougang Contract material
A126: 0.19 | B126: 912 | C126: MR T-3 BA | D126: 6.26 | E126: 2.8/2.8 | F126: Shougang
A127: 0.19 | B127: 922 | C127: MR T-5BA | D127: 8.38 | E127: 2.8/2.8 | F127: Shougang
A128: 0.19 | B128: 926 | C128: MR T-4CA | D128: =8.63+8.6 -> 17.23 | E128: 5.6/5.6 | F128: Shougang
A129: 0.19 | B129: 926 | C129: MR T-5CA | D129: 3.275 | E129: 1.1/1.1 | F129: Shougang
A130: 0.19 | B130: 954 | C130: MR T-4 BA | D130: 8.915 | E130: 2.5/2.5 | F130: Shougang
A131: 0.19 | B131: 965 | C131: MR T-4CA | D131: 6.68 | E131: 2.8/1.1 | F131: Shougang
A132: 0.19 | B132: 1035 | C132: MR T-5CA | D132: =6.52+5.52+5.5 -> 17.54 | E132: 2.2/2.2 | F132: Shougang
A133: 0.19 | B133: 1035 | C133: MR T-4CA | D133: =7.95+6.42 -> 14.37 | E133: 2.0/2.0 | F133: Shougang
A134: 0.19 | B134: 1035 | C134: MR T-5CA | D134: =5.01+7.91+6.62 -> 19.54 | E134: 2.0/2.0 | F134: Shougang
A135: 0.19 | B135: 1035 | C135: MR T-5CA | D135: =7.31+29.52+5.05 -> 41.88 | E135: 2.0/2.0 | F135: Shougang
A136: 0.19 | B136: 1035 | C136: MR T-5CA | D136: 5.43 | E136: 2.2/2.2 | F136: Shougang
A137: 0.19 | B137: 1035 | C137: MR T-5CA | D137: =6.44+6.58 -> 13.02 | E137: 1.1/1.1 | F137: Shougang
A138: 0.19 | B138: 1036 | C138: MR T-5CA | D138: 6.85 | E138: 1.1/1.1 | F138: Shougang
A139: 0.195 | B139: 1035 | C139: MR T-5CA | D139: =6.46+6.42 -> 12.88 | E139: 1.1/1.1 | F139: Shougang
A140: 0.2 | B140: 737 | C140: MR T-2.5 BA | D140: 5.5 | E140: 2.8/2.8 | F140: Shougang
A141: 0.2 | B141: 800 | C141: MR T-4 CA | D141: 5.44 | E141: 2.0/2.0 | F141: Shougang | G141: GDL
A142: 0.2 | B142: 801 | C142: MR T-4 CA | D142: 5.56 | E142: 2.0/2.0 | F142: Shougang | G142: GDL
A143: 0.2 | B143: 814 | C143: MR DR-7 CA | D143: =7.99+8.42 -> 16.41 | E143: 1.1/1.1 | F143: Shougang
A144: 0.2 | B144: 832 | C144: MR T-4BA | D144: =5.7 -> 5.7 | E144: 2.0/2.0 | F144: Shougang
A145: 0.2 | B145: 835 | C145: MR T-3 BA | D145: 8.3 | E145: 5.6/2.8 | F145: Shougang
A146: 0.2 | B146: 839 | C146: MR T-5 BA | D146: 8.73 | E146: 2.8/2.8 | F146: Shougang
A147: 0.2 | B147: 840 | C147: MR T-4 CA | D147: =8.74+8.75 -> 17.49 | E147: 2.8/1.1 | F147: Shougang
A148: 0.2 | B148: 859 | C148: MR T-4 CA | D148: 5.92 | E148: 2.0/2.0 | F148: Shougang
A149: 0.2 | B149: 859 | C149: MR T-4 CA | D149: =8.47+7.98 -> 16.45 | E149: 2.0/2.0 | F149: Shougang
A150: 0.2 | B150: 859 | C150: MR T-4 CA | D150: 8.74 | E150: 2.0/2.0 | F150: Shougang
A151: 0.2 | B151: 860 | C151: MR T-4 CA | D151: 8.96 | E151: 1.1/1.1 | F151: Shougang
A152: 0.2 | B152: 860 | C152: MR T-4CA HCR | D152: 17.32 | E152: 2.8/2.0 | F152: Shougang
A153: 0.2 | B153: 860 | C153: MR T-4 CA | D153: 3.21 | E153: 1.1/1.1 | F153: Shougang
A154: 0.2 | B154: 860 | C154: MR T-4CA | D154: 3.18 | E154: 2.8/2.8 | F154: Shougang
A155: 0.2 | B155: 861 | C155: MR T-4CA | D155: =5.48+5.53+5.54 -> 16.55 | E155: 2.8/2.8 | F155: Shougang
A156: 0.2 | B156: 861 | C156: MR T-4CA | D156: 4.55 | E156: 2.0/1.1 | F156: Shougang
A157: 0.2 | B157: 866 | C157: MR T-4CA | D157: 6.1 | E157: 1.1/1.1 | F157: Shougang Contract material
A158: 0.2 | B158: 870 | C158: MR T-5 CA | D158: =5.89+5.91 -> 11.8 | E158: 1.1/1.1 | F158: Shougang
A159: 0.2 | B159: 887 | C159: MR T-5CA | D159: =7.65+5.97 -> 13.62 | E159: 2.0/2.0 | F159: Shougang
A160: 0.2 | B160: 887 | C160: MR T-5CA | D160: 5.99 | E160: 2.8/2.0 | F160: Shougang
A161: 0.2 | B161: 888 | C161: MR T-4CA | D161: 6.3 | E161: 2.8/2.0 | F161: Shougang
A162: 0.2 | B162: 895 | C162: MR T-4 CA | D162: =4.91+7.85 -> 12.76 | E162: 2.8/1.1 | F162: Shougang
A163: 0.2 | B163: 895 | C163: MR T-4 CA | D163: =6.43+7.09 -> 13.52 | E163: 2.0/2.0 | F163: Shougang Contract material | G163: GDL
A164: 0.2 | B164: 900 | C164: MR T-4 CA | D164: =5.71+5.83+5.86 -> 17.4 | E164: 2.0/2.0 | F164: Shougang | G164: GDL
A165: 0.2 | B165: 900 | C165: MR T-3 BA | D165: =6.305+6.195 -> 12.5 | E165: 5.6/2.8 | F165: Shougang
A166: 0.2 | B166: 906 | C166: MR T-3BA | D166: 6.28 | E166: 2.8/2.8 | F166: Shougang
A167: 0.2 | B167: 906 | C167: MR T-3BA | D167: 6.19 | E167: 2.8/2.8 | F167: Shougang
A168: 0.2 | B168: 906 | C168: MR T-3CA | D168: =5.8+7.37+7.31 -> 20.48 | E168: 2.8/2.8 | F168: Shougang
A169: 0.2 | B169: 906 | C169: MR T-3CA | D169: 6.51 | E169: 2.5/2.5 | F169: Shougang
A170: 0.2 | B170: 917 | C170: MR T-4BA | D170: 6.59 | E170: 1.1/1.1（2.8/2.8） | F170: Shougang
A171: 0.2 | B171: 927 | C171: MR T-4BA | D171: 5.795 | E171: 1.1/2.8 | F171: Shougang
A172: 0.2 | B172: 937 | C172: MR T-1 BA | D172: 14.95 | E172: 11.2/2.8 | F172: Shougang
A173: 0.2 | B173: 945 | C173: MR T-4 CA | D173: 4.42 | E173: A2.8/2.8 | F173: Shougang
A174: 0.2 | B174: 947 | C174: MR T-4CA | D174: 4.97 | E174: 2.2/2.8 | F174: Shougang
A175: 0.2 | B175: 952 | C175: MR T-1 BA | D175: 3.255 | E175: 11.2/2.8 | F175: Shougang Contract material
A176: 0.2 | B176: 981 | C176: MR T-4 CA | D176: 5.65 | E176: 1.1/1.1 | F176: Shougang Contract material
A177: 0.2 | B177: 1035 | C177: MR T-4CA | D177: =5.8+6.69+6.15 -> 18.64 | E177: 1.1/1.1 | F177: Shougang
A178: 0.2 | B178: 1035 | C178: MR T-5CA | D178: 6.58 | E178: 1.1/1.1 | F178: Shougang
A179: 0.2 | B179: 1035 | C179: MR T-4CA | D179: =80.72+18.42-23.91+37.98 -> 113.21 | E179: 1.1/1.1 | F179: Shougang
A180: 0.2 | B180: 1035 | C180: MR T-4BA | D180: 5.16 | E180: 2.8/2.8 | F180: Shougang
A181: 0.2 | B181: 1036 | C181: MR T-4BA | D181: 5.09 | E181: 2.5/2.5 | F181: Shougang
A182: 0.2 | B182: 1036 | C182: MR T-4CA | D182: =6.72+6.75 -> 13.47 | E182: 1.1/1.1 | F182: Shougang
A183: 0.2 | B183: 1036 | C183: MR T-4CA | D183: =59.88+5.05-37.04+18.8 -> 46.69 | E183: 1.1/1.1 | F183: Shougang
A184: 0.2 | B184: 1036 | C184: MR T-5CA | D184: =17.81+6.26 -> 24.07 | E184: 1.1/1.1 | F184: Shougang
A185: 0.205 | B185: 866 | C185: L DR-8CA | D185: 9.36 | E185: 1.1/2.2 | F185: Shougang
A186: 0.21 | B186: 776 | C186: MR T-4 CA | D186: 4.45 | E186: 2.0/2.0 | F186: Shougang
A187: 0.21 | B187: 802 | C187: MR DR-8 CA | D187: 6.755 | E187: 2.8/2.8 | F187: Shougang
A188: 0.21 | B188: 814 | C188: L DR-7.5BA | D188: 5.29 | E188: 2.2/1.7 | F188: Shougang
A189: 0.21 | B189: 823 | C189: MR T-5CA | D189: 17.56 | E189: 1.1/1.1 | F189: Shougang
A190: 0.21 | B190: 829 | C190: MR T-3BA | D190: 7.665 | E190: 5.6/2.8 | F190: Shougang Contract material
A191: 0.21 | B191: 829 | C191: MR T-3BA | D191: 3.82 | E191: 5.6/2.8 | F191: Shougang
A192: 0.21 | B192: 834 | C192: MR DR-8CA | D192: =25.53+8.56+66.34+43.98+5-8.53-8.87-8.87-8.5-8.77-7.75-7.77-8.25-8.1-9.12-30.22-17.47-8.69 -> 8.5 | E192: 2.0/2.0 | F192: Shougang
A193: 0.21 | B193: 834 | C193: MR DR-8CA | D193: 7.9 | E193: 2.8/2.8 | F193: Shougang
A194: 0.21 | B194: 834 | C194: MR DR-8CA | D194: 17.96 | E194: 2.0/2.0 | F194: Shougang Contract material
A195: 0.21 | B195: 835 | C195: MR DR-8CA | D195: =49.74+14.99+17.32-7.42-8.68-8.67-7.57-7.78-7.78-8.65-8.53 -> 16.97 | E195: 2.0/2.0 | F195: Shougang
A196: 0.21 | B196: 900 | C196: MR T-3BA | D196: =6.95+9.46+9.35 -> 25.76 | E196: 5.6/5.6 | F196: Shougang
A197: 0.21 | B197: 900 | C197: MR T-3BA | D197: 8.95 | E197: 5.6/5.6 | F197: Shougang
A198: 0.21 | B198: 900 | C198: MR T-3BA | D198: 6.265 | E198: 5.6/2.8 | F198: Shougang
A199: 0.21 | B199: 900 | C199: MR T-3BA | D199: =6.065+6.135+3.79 -> 15.99 | E199: 5.6/2.8 | F199: Shougang
A200: 0.21 | B200: 900 | C200: MR T-3BA | D200: =6.5+5.51+6.145 -> 18.155 | E200: 5.6/2.8 | F200: Shougang
... 166 more rows

Sheet Jintai
A1: ETP Coil | B1: 0.19*832 | C1: 7.416 | D1: T-4 | E1: 1.1/1.1 | F1: R | G1: CA | H1: Yulan prime stock
A2: ETP Coil | B2: 0.19*832 | C2: 7.223 | D2: T-4 | E2: 1.1/1.1 | F2: R | G2: CA | H2: Yulan prime stock
A3: ETP Coil | B3: 0.19*832 | C3: 7.524 | D3: T-4 | E3: 1.1/1.1 | F3: R | G3: CA | H3: Yulan prime stock
A4: ETP Coil | B4: 0.19*832 | C4: 7.4 | D4: T-4 | E4: 1.1/1.1 | F4: R | G4: CA | H4: Yulan prime stock
A5: ETP Coil | B5: 0.19*832 | C5: 7.41 | D5: T-4 | E5: 1.1/1.1 | F5: R | G5: CA | H5: Yulan prime stock
A6: ETP Coil | B6: 0.19*832 | C6: 5.44 | D6: T-4 | E6: 1.1/1.1 | F6: R | G6: CA | H6: Yulan prime stock
A7: ETP Coil | B7: 0.19*832 | C7: 5.532 | D7: T-4 | E7: 1.1/1.1 | F7: R | G7: CA | H7: Yulan prime stock
A8: ETP Coil | B8: 0.19*832 | C8: 5.6 | D8: T-4 | E8: 1.1/1.1 | F8: R | G8: CA | H8: Yulan prime stock
A9: ETP Coil | B9: 0.19*832 | C9: 7.504 | D9: T-4 | E9: 1.1/1.1 | F9: R | G9: CA | H9: Yulan prime stock
A10: ETP Coil | B10: 0.19*832 | C10: 7.324 | D10: T-4 | E10: 1.1/1.1 | F10: R | G10: CA | H10: Yulan prime stock
A11: ETP Coil | B11: 0.19*832 | C11: 5.532 | D11: T-4 | E11: 1.1/1.1 | F11: R | G11: CA | H11: Yulan prime stock
A12: ETP Coil | B12: 0.19*832 | C12: 7.234 | D12: T-4 | E12: 1.1/1.1 | F12: R | G12: CA | H12: Yulan prime stock
A13: ETP Coil | B13: 0.19*832 | C13: 7.036 | D13: T-4 | E13: 1.1/1.1 | F13: R | G13: CA | H13: Yulan prime stock
A14: ETP Coil | B14: 0.19*832 | C14: 7.523 | D14: T-4 | E14: 1.1/1.1 | F14: R | G14: CA | H14: Yulan prime stock
A15: ETP Coil | B15: 0.19*832 | C15: 7.199 | D15: T-4 | E15: 1.1/1.1 | F15: R | G15: CA | H15: Yulan prime stock
A16: ETP Coil | B16: 0.19*832 | C16: 7.212 | D16: T-4 | E16: 1.1/1.1 | F16: R | G16: CA | H16: Yulan prime stock
A17: ETP Coil | B17: 0.19*832 | C17: 7.413 | D17: T-4 | E17: 1.1/1.1 | F17: R | G17: CA | H17: Yulan prime stock
A18: ETP Coil | B18: 0.19*832 | C18: 7.225 | D18: T-4 | E18: 1.1/1.1 | F18: R | G18: CA | H18: Yulan prime stock
A19: ETP Coil | B19: 0.19*832 | C19: 7.61 | D19: T-4 | E19: 1.1/1.1 | F19: R | G19: CA | H19: Yulan prime stock
A20: ETP Coil | B20: 0.19*832 | C20: 5.967 | D20: T-4 | E20: 1.1/1.1 | F20: R | G20: CA | H20: Yulan prime stock
A21: ETP Coil | B21: 0.19*832 | C21: 6.933 | D21: T-4 | E21: 1.1/1.1 | F21: R | G21: CA | H21: Yulan prime stock
A22: ETP Coil | B22: 0.19*832 | C22: 7.131 | D22: T-4 | E22: 1.1/1.1 | F22: R | G22: CA | H22: Yulan prime stock
C23: =SUM(C1:C22) -> 152.388
A24: ETP Coil | B24: 0.22*925 | C24: 8.623 | D24: T-4 | E24: 1.1/1.1 | F24: R | G24: BA | H24: Yulan prime stock
A25: ETP Coil | B25: 0.22*925 | C25: 7.506 | D25: T-4 | E25: 1.1/1.1 | F25: R | G25: BA | H25: Yulan prime stock
A26: ETP Coil | B26: 0.22*925 | C26: 7.993 | D26: T-4 | E26: 1.1/1.1 | F26: R | G26: BA | H26: Yulan prime stock
A27: ETP Coil | B27: 0.22*925 | C27: 7.425 | D27: T-4 | E27: 1.1/1.1 | F27: R | G27: BA | H27: Yulan prime stock
A28: ETP Coil | B28: 0.22*925 | C28: 7.755 | D28: T-4 | E28: 1.1/1.1 | F28: R | G28: BA | H28: Yulan prime stock
A29: ETP Coil | B29: 0.22*925 | C29: 8.382 | D29: T-4 | E29: 1.1/1.1 | F29: R | G29: BA | H29: Yulan prime stock
A30: ETP Coil | B30: 0.22*925 | C30: 7.87 | D30: T-4 | E30: 1.1/1.1 | F30: R | G30: BA | H30: Yulan prime stock
A31: ETP Coil | B31: 0.22*925 | C31: 8.488 | D31: T-4 | E31: 1.1/1.1 | F31: R | G31: BA | H31: Yulan prime stock
A32: ETP Coil | B32: 0.22*925 | C32: 8.235 | D32: T-4 | E32: 1.1/1.1 | F32: R | G32: BA | H32: Yulan prime stock
A33: ETP Coil | B33: 0.22*925 | C33: 8.045 | D33: T-4 | E33: 1.1/1.1 | F33: R | G33: BA | H33: Yulan prime stock
A34: ETP Coil | B34: 0.22*925 | C34: 8.23 | D34: T-4 | E34: 1.1/1.1 | F34: R | G34: BA | H34: Yulan prime stock
A35: ETP Coil | B35: 0.22*925 | C35: 8 | D35: T-4 | E35: 1.1/1.1 | F35: R | G35: BA | H35: Yulan prime stock
A36: ETP Coil | B36: 0.22*925 | C36: 8.213 | D36: T-4 | E36: 1.1/1.1 | F36: R | G36: BA | H36: Yulan prime stock
A37: ETP Coil | B37: 0.22*925 | C37: 7.798 | D37: T-4 | E37: 1.1/1.1 | F37: R | G37: BA | H37: Yulan prime stock
A38: ETP Coil | B38: 0.22*925 | C38: 7.455 | D38: T-4 | E38: 1.1/1.1 | F38: R | G38: BA | H38: Yulan prime stock
A39: ETP Coil | B39: 0.22*925 | C39: 8.008 | D39: T-4 | E39: 1.1/1.1 | F39: R | G39: BA | H39: Yulan prime stock
C40: =SUM(C24:C39) -> 128.026
A41: ETP Coil | B41: 0.22*972 | C41: 7.84 | D41: T-4 | E41: 1.1/1.1 | F41: R | G41: BA | H41: Yulan prime stock
A42: ETP Coil | B42: 0.22*972 | C42: 7.702 | D42: T-4 | E42: 1.1/1.1 | F42: R | G42: BA | H42: Yulan prime stock
A43: ETP Coil | B43: 0.22*972 | C43: 7.686 | D43: T-4 | E43: 1.1/1.1 | F43: R | G43: BA | H43: Yulan prime stock
A44: ETP Coil | B44: 0.22*972 | C44: 7.674 | D44: T-4 | E44: 1.1/1.1 | F44: R | G44: BA | H44: Yulan prime stock
A45: ETP Coil | B45: 0.22*972 | C45: 7.664 | D45: T-4 | E45: 1.1/1.1 | F45: R | G45: BA | H45: Yulan prime stock
A46: ETP Coil | B46: 0.22*972 | C46: 7.648 | D46: T-4 | E46: 1.1/1.1 | F46: R | G46: BA | H46: Yulan prime stock
A47: ETP Coil | B47: 0.22*972 | C47: 7.69 | D47: T-4 | E47: 1.1/1.1 | F47: R | G47: BA | H47: Yulan prime stock
A48: ETP Coil | B48: 0.22*972 | C48: 7.161 | D48: T-4 | E48: 1.1/1.1 | F48: R | G48: BA | H48: Yulan prime stock
A49: ETP Coil | B49: 0.22*972 | C49: 8.271 | D49: T-4 | E49: 1.1/1.1 | F49: R | G49: BA | H49: Yulan prime stock
A50: ETP Coil | B50: 0.22*972 | C50: 7.963 | D50: T-4 | E50: 1.1/1.1 | F50: R | G50: BA | H50: Yulan prime stock
C51: =SUM(C41:C50) -> 77.299

Sheet Hengshui
A1: Size | B1: Net Weight (MT) | C1: 用途 | D1: Type | E1: Hardness Grade | F1: Tin-coating (g/m²) | G1: Annealed | H1: Grade | I1: brand
A2: 0.17*895*835 | B2: 1.695 | C2: 食品罐身 | D2: ETP Sheet | E2: T-5 | F2: 1.1/1.1 | G2: CA | H2: Prime | I2: Hengshui
A3: 0.17*895*835 | B3: 1.695 | C3: 食品罐身 | D3: ETP Sheet | E3: T-5 | F3: 1.1/1.1 | G3: CA | H3: Prime | I3: Hengshui
A4: 0.18*812 | B4: 6.918 | C4: 饮料罐身 | D4: ETP Coil | E4: T-5 | F4: 1.1/1.1 | G4: CA | H4: Prime | I4: Hengshui
A5: 0.18*860 | B5: 5.12 | D5: ETP Coil | E5: T-4 | F5: 1.1/1.1 | G5: BA | H5: Prime | I5: Hengshui
A6: 0.18*860 | B6: 4.87 | D6: ETP Coil | E6: T-4 | F6: 1.1/1.1 | G6: BA | H6: Prime | I6: Hengshui
A7: 0.2*712 | B7: 6.308 | D7: Cold Coil | E7: T-2.5 | F7: - | G7: BA | H7: Prime | I7: Hengshui
A8: 0.2*883 | B8: 7.046 | C8: 八宝粥罐身 | D8: ETP Coil | E8: T-5 | F8: 1.1/1.1 | G8: CA | H8: Prime | I8: Hengshui
A9: 0.2*883 | B9: 7.194 | C9: 八宝粥罐身 | D9: ETP Coil | E9: T-5 | F9: 1.1/1.1 | G9: CA | H9: Prime | I9: Hengshui
A10: 0.2*895 | B10: 5.474 | D10: Cold Coil | E10: T-4 | F10: - | G10: BA | H10: Prime | I10: Hengshui
A11: 0.2*895 | B11: 6.828 | D11: Cold Coil | E11: T-4 | F11: - | G11: BA | H11: Prime | I11: Hengshui
A12: 0.22*770 | B12: 5.908 | C12: 食品罐身 | D12: ETP Coil | E12: T-3 | F12: 2.8/2.8 | G12: BA | H12: Prime | I12: Hengshui
A13: 0.22*796 | B13: 6.778 | C13: 食品罐身 | D13: ETP Coil | E13: T-4 | F13: 2.8/2.8 | G13: CA | H13: Prime | I13: Hengshui
A14: 0.22*929 | B14: 7.59 | C14: 其他食品罐罐身 | D14: ETP Coil | E14: T-5 | F14: 2.8/2.8 | G14: CA | H14: Contract material | I14: Hengshui
A15: 0.22*929 | B15: 7.55 | C15: 其他食品罐罐身 | D15: ETP Coil | E15: T-5 | F15: 2.8/2.8 | G15: CA | H15: Contract material | I15: Hengshui
A16: 0.22*929 | B16: 3.615 | C16: 其他食品罐罐身 | D16: ETP Coil | E16: T-5 | F16: 2.8/2.8 | G16: CA | H16: Contract material | I16: Hengshui
A17: 0.22*929 | B17: 5.222 | C17: 其他食品罐罐身 | D17: ETP Coil | E17: T-5 | F17: 2.8/2.8 | G17: CA | H17: Contract material | I17: Hengshui
A18: 0.22*929 | B18: 5.308 | C18: 其他食品罐罐身 | D18: ETP Coil | E18: T-5 | F18: 2.8/2.8 | G18: CA | H18: Contract material | I18: Hengshui
A19: 0.5*735 | B19: =38.55-27.63 -> 10.92 | C19: 电子 | D19: ETP Coil | E19: T4 | F19: 5.6/5.6 | G19: BA | H19: Prime | I19: Hengshui
B21: =SUM(B2:B20) -> 106.039

Sheet LinqingHengtai
A1: Size(mm) | B1: Net Weight (MT) | C1: Tin-coating (g/m²) | D1: Hardness Grade | E1: Grade
A2: 0.16*875 | B2: 6.790 | C2: 2.0/2.0 | D2: DR8.5 | E2: A-
A3: 0.16*875 | B3: 6.884 | C3: 2.0/2.0 | D3: DR8.5 | E3: A-
A4: 0.16*942 | B4: 3.062 | C4: 1.1/1.1 | D4: DR8 | E4: A-
A5: 0.16*942 | B5: 7.010 | C5: 1.1/1.1 | D5: DR8 | E5: A-
A6: 0.16*942 | B6: 3.162 | C6: 1.1/1.1 | D6: DR8 | E6: A-
A7: 0.16*942 | B7: 2.984 | C7: 1.1/1.1 | D7: DR8 | E7: A-
A8: 0.16*798 | B8: 5.908 | C8: 1.1/1.1 | D8: DR8 | E8: A-
A9: 0.16*798 | B9: 3.926 | C9: 1.1/1.1 | D9: DR8 | E9: A-
A10: 0.16*798 | B10: 7.458 | C10: 1.1/1.1 | D10: DR8 | E10: A-
A11: 0.16*798 | B11: 4.408 | C11: 1.1/1.1 | D11: DR8 | E11: A-
A12: 0.16*798 | B12: 5.798 | C12: 1.1/1.1 | D12: DR8 | E12: A-
A13: 0.16*798 | B13: 6.110 | C13: 1.1/1.1 | D13: DR8 | E13: A-
A14: 0.16*798 | B14: 4.874 | C14: 1.1/1.1 | D14: DR8 | E14: A-
B15: =SUM(B2:B14) -> 68.374
